bitfinex-derivatives/quotes_SOLF0:USTF0_20260314
["timestamp","ask_amount","ask_price","bid_price","bid_amount"]
[1773464316796,1.95701997,88.207,88.164,3.84902922]
[1773464316992,10.202,88.205,88.164,3.84902922]
[1773464317197,1.94353008,88.199,88.164,3.84902922]
[1773464322304,1.92898827,88.209,88.164,3.84902922]
[1773464323902,1.93329458,88.207,88.164,3.84902922]
[1773464324205,10.201,88.208,88.164,3.84902922]
[1773464327801,1.90972375,88.205,88.164,3.84902922]
[1773464328808,4.94631924,88.2,88.164,3.84902922]
[1773464329108,1.90965242,88.199,88.164,3.84902922]
[1773464330603,10.202,88.198,88.164,3.84902922]
[1773464334611,35.64,88.216,88.164,3.84902922]
[1773464334612,1.96117552,88.215,88.164,3.84902922]
[1773464335108,1.96117552,88.215,88.16,3.03666682]
[1773464335109,1.96117552,88.215,88.173,3.64260144]
[1773464335509,10.201,88.213,88.173,3.64260144]
[1773464335712,12.15987688,88.213,88.173,3.64260144]
[1773464336010,47.79987688,88.213,88.173,3.64260144]
[1773464337416,1.94373745,88.212,88.173,3.64260144]
[1773464340509,10.201,88.21,88.173,3.64260144]
[1773464340715,1.93674437,88.209,88.173,3.64260144]
[1773464341616,1.93080813,88.21,88.173,3.64260144]
[1773464342107,1.93080813,88.212,88.173,3.64260144]
[1773464353332,35.64,88.214,88.176,3.64260144]
[1773464354632,35.64,88.214,88.181,3.64260144]
[1773464355838,37.54163557,88.214,88.181,3.64260144]
[1773464357237,35.64,88.214,88.181,3.64260144]
[1773464361339,35.64,88.214,88.172,0.07144749]
[1773464361340,1.89260136,88.209,88.152,3.68233889]
[1773464362637,1.89260136,88.209,88.164,3.68233889]
[1773464364743,1.89260136,88.209,88.166,3.68233889]
[1773464365536,1.82494814,88.22,88.171,3.68233889]
[1773464366541,1.82494814,88.22,88.175,10.205]
[1773464366741,1.82494814,88.22,88.176,3.68233889]
[1773464367939,1.82494814,88.22,88.178,10.205]
[1773464368141,1.82494814,88.22,88.179,3.68233889]
[1773464372754,35.64,88.221,88.181,3.68233889]
[1773464373556,35.64,88.221,88.184,3.68233889]
[1773464374052,35.64,88.227,88.184,3.68233889]
[1773464374652,35.64,88.227,88.188,3.68233889]
[1773464375958,1.67325142,88.226,88.189,13.88533889]
[1773464376558,1.67325142,88.226,88.19,3.68233889]
[1773464399168,35.64,88.227,88.19,3.68233889]
[1773464399373,35.64,88.227,88.192,3.82529615]
[1773464400671,35.64,88.227,88.202,3.82529615]
[1773464402172,10.197,88.247,88.204,3.82529615]
[1773464402173,1.71938211,88.247,88.204,3.82529615]
[1773464403372,3.03557405,88.26,88.204,3.82529615]
[1773464403574,1.71148884,88.267,88.221,3.82529615]
[1773464404273,1.71148884,88.249,88.191,3.82529615]
[1773464404473,1.71148884,88.239,88.191,3.82529615]
[1773464405173,1.71275406,88.249,88.202,3.82529615]
[1773464405474,1.71275406,88.261,88.211,3.82529615]
[1773464406178,1.68700177,88.259,88.211,3.82529615]
[1773464406582,1.68700177,88.259,88.22,3.82529615]
[1773464410381,1.66080234,88.249,88.21,14.02629615]
[1773464410588,1.6552645,88.239,88.191,3.82529615]
[1773464411184,1.6552645,88.239,88.192,3.82529615]
[1773464412688,1.6552645,88.239,88.194,3.82529615]
[1773464413586,1.6552645,88.239,88.196,3.82529615]
[1773464415585,1.6552645,88.239,88.2,3.82529615]
[1773464416488,1.6552645,88.239,88.201,10.202]
[1773464416796,1.6552645,88.239,88.202,3.82529615]
[1773464418489,1.6552645,88.239,88.204,10.201]
[1773464418688,1.6552645,88.239,88.204,14.02629615]
[1773464419195,1.6552645,88.239,88.205,3.82529615]
[1773464420090,4.63977056,88.25,88.205,3.82529615]
[1773464420288,1.60419651,88.249,88.205,3.82529615]
[1773464423494,1.60419651,88.249,88.206,10.201]
[1773464423694,1.60419651,88.249,88.207,3.89057547]
[1773464424299,1.60368642,88.247,88.207,3.89057547]
[1773464432306,0.0714528,88.236,88.207,3.89057547]
[1773464435602,1.59816771,88.235,88.202,3.89057547]
[1773464437008,0.0714528,88.236,88.202,3.89057547]
[1773464440707,10.196,88.252,88.202,3.89057547]
[1773464441712,1.65604779,88.259,88.206,3.89057547]
[1773464442611,1.6461938,88.257,88.211,3.89057547]
[1773464443610,1.70649517,88.249,88.211,3.89057547]
[1773464443814,1.70649517,88.249,88.201,3.89057547]
[1773464445517,1.70649517,88.249,88.216,0.07150064]
[1773464446115,1.68749131,88.239,88.201,3.89057547]
[1773464456318,4.7157141,88.22,88.173,3.70612685]
[1773464456513,1.68121518,88.219,88.173,3.70612685]
[1773464457116,1.68121518,88.219,88.175,3.70612685]
[1773464461025,0.07168611,88.206,88.175,3.70612685]
[1773464470732,1.48078935,88.206,88.175,3.70612685]
[1773464471632,1.40443879,88.199,88.164,3.70612685]
[1773464474133,1.40406389,88.197,88.164,3.70612685]
[1773464475534,1.42070254,88.195,88.164,3.70612685]
[1773464477637,3.03449892,88.19,88.15,3.70612685]
[1773464479537,10.203,88.189,88.15,3.70612685]
[1773464479733,11.61426758,88.189,88.15,3.70612685]
[1773464480828,1.41126758,88.189,88.15,3.70612685]
[1773464482936,0.07147383,88.178,88.15,3.70612685]
[1773464504458,1.4419607,88.177,88.14,3.74046756]
[1773464505057,0.07147383,88.178,88.14,6.77496648]
[1773464505362,0.07147383,88.178,88.141,3.74046756]
[1773464509258,0.07147383,88.178,88.142,10.209]
[1773464509456,0.07147383,88.178,88.14,3.03797612]
[1773464509457,0.07147383,88.178,88.143,3.9468848]
[1773464510665,0.07147383,88.178,88.145,3.9468848]
[1773464515870,0.07147383,88.178,88.148,3.91200989]
[1773464517669,0.07147383,88.178,88.15,3.91200989]
[1773464522776,1.52402304,88.212,88.152,3.91200989]
[1773464523079,8.7596797,88.211,88.161,3.91200989]
[1773464523278,1.52402304,88.212,88.161,3.91200989]
[1773464523574,10.2,88.22,88.173,3.91200989]
[1773464524580,10.2,88.22,88.175,3.91200989]
[1773464527182,1.52402304,88.223,88.178,3.91200989]
[1773464527385,1.52307005,88.219,88.178,3.91200989]
[1773464533888,10.201,88.213,88.178,3.91200989]
[1773464537287,10.201,88.213,88.187,0.07153698]
[1773464537488,1.52307005,88.219,88.187,3.98354687]
[1773464537689,13.23797612,88.22,88.187,3.98354687]
[1773464537889,10.2,88.22,88.187,3.98354687]
[1773464538091,35.66,88.226,88.187,3.98354687]
[1773464540392,10.199,88.227,88.187,3.98354687]
[1773464546387,1.55181825,88.219,88.187,0.07153698]
[1773464546692,1.55181825,88.209,88.187,0.07153698]
[1773464553399,3.03797612,88.21,88.187,0.07153698]
[1773464553599,10.2,88.216,88.187,0.07153698]
[1773464559808,1.59577835,88.219,88.187,0.07153698]
[1773464560605,1.59577835,88.219,88.187,3.95684686]
[1773464563211,10.199,88.225,88.187,3.95684686]
[1773464566208,1.57513236,88.245,88.191,3.88530988]
[1773464566409,1.58002758,88.244,88.191,3.88530988]
[1773464567711,1.68387671,88.242,88.191,3.88530988]
[1773464568111,1.68387671,88.241,88.191,3.88530988]
[1773464569512,1.67252037,88.24,88.194,3.85289497]
[1773464570309,1.67252037,88.24,88.208,0.07149574]
[1773464570714,10.198,88.236,88.208,0.07149574]
[1773464575415,1.70802052,88.233,88.208,0.07149574]
[1773464576627,1.70437559,88.231,88.208,0.07149574]
[1773464601844,10.197,88.24,88.208,3.96096812]
[1773464602347,37.36891063,88.242,88.208,3.96096812]
[1773464603548,37.36891063,88.242,88.212,3.88947238]
[1773464604351,37.36891063,88.242,88.217,10.2]
[1773464604651,35.68,88.242,88.217,10.2]
[1773464607354,35.68,88.242,88.218,3.88947238]
[1773464609649,35.68,88.242,88.209,3.88947238]
[1773464610754,37.44507086,88.242,88.209,3.88947238]
[1773464611655,37.44507086,88.242,88.212,10.201]
[1773464617354,35.68,88.242,88.215,14.08947238]
[1773464617559,35.68,88.242,88.216,3.88947238]
[1773464618657,35.68,88.242,88.219,10.2]
[1773464620758,1.7855787,88.241,88.208,0.07149574]
[1773464620969,1.7855787,88.241,88.169,20.412]
[1773464620970,1.71408296,88.229,88.182,3.88947238]
[1773464622565,1.71408296,88.229,88.184,10.204]
[1773464622760,1.7122034,88.209,88.171,3.88947238]
[1773464622960,1.7122034,88.209,88.151,3.88947238]
[1773464623264,1.7122034,88.199,88.151,3.88947238]
[1773464623956,1.7122034,88.199,88.157,10.207]
[1773464625165,1.7122034,88.199,88.161,3.88947238]
[1773464626571,1.7122034,88.199,88.163,3.69202089]
[1773464626968,35.68,88.207,88.163,3.69202089]
[1773464627169,37.23011538,88.207,88.163,3.69202089]
[1773464627569,1.55011538,88.206,88.163,3.69202089]
[1773464628570,1.55011538,88.206,88.167,10.206]
[1773464629965,1.55011538,88.206,88.167,13.89802089]
[1773464631076,1.55011538,88.206,88.168,3.96138357]
[1773464631273,1.55011538,88.206,88.171,3.96138357]
[1773464631473,1.57686655,88.226,88.171,3.96138357]
[1773464631670,1.57686655,88.226,88.181,3.96138357]
[1773464632375,1.57686655,88.226,88.185,3.96138357]
[1773464633884,1.57686655,88.226,88.188,14.16438357]
[1773464634181,1.57686655,88.226,88.189,3.96138357]
[1773464635884,1.57686655,88.226,88.191,3.96138357]
[1773464637584,1.72794642,88.237,88.193,3.96138357]
[1773464638581,1.72794642,88.237,88.195,10.203]
[1773464640783,1.72794642,88.237,88.201,10.202]
[1773464640990,10.54611462,88.28,88.145,20.417]
[1773464640991,1.72695016,88.247,88.202,3.96138357]
[1773464641684,1.72746093,88.239,88.189,3.96138357]
[1773464642689,1.72746093,88.239,88.195,10.203]
[1773464645890,1.72746093,88.239,88.195,14.16438357]
[1773464646490,1.72746093,88.239,88.197,10.202]
[1773464646691,1.72746093,88.239,88.197,14.16338357]
[1773464646992,1.72746093,88.239,88.199,10.202]
[1773464647191,1.72746093,88.239,88.193,3.96138357]
[1773464647689,10.54611462,88.284,88.193,3.96138357]
[1773464647690,1.72837421,88.249,88.193,3.96138357]
[1773464648687,1.72837421,88.249,88.208,3.96138357]
[1773464649492,1.72837421,88.249,88.21,10.201]
[1773464649693,1.72837421,88.249,88.211,3.96138357]
[1773464650197,1.72837421,88.249,88.215,3.96138357]
[1773464653101,40.47972251,88.26,88.218,3.96138357]
[1773464653602,1.76522395,88.259,88.218,3.96138357]
[1773464654899,1.76522395,88.259,88.219,14.16138357]
[1773464656600,1.76522395,88.259,88.22,3.96138357]
[1773464660805,1.76522395,88.259,88.221,14.16138357]
[1773464661008,1.76976898,88.261,88.222,3.96138357]
[1773464661709,1.76757325,88.259,88.213,10.2]
[1773464661902,1.76750856,88.239,88.191,3.82504519]
[1773464662409,1.76750856,88.239,88.2,3.82504519]
[1773464662807,1.76750856,88.239,88.196,10.202]
[1773464663712,1.73224792,88.229,88.189,3.82504519]
[1773464664103,1.73224792,88.219,88.179,14.02904519]
[1773464664610,1.73224792,88.219,88.18,3.82504519]
[1773464665014,0.07144913,88.208,88.18,3.82504519]
[1773464667516,0.07144913,88.208,88.184,3.82504519]
[1773464668015,35.68,88.226,88.184,3.82504519]
[1773464668216,1.7480738,88.225,88.184,3.82504519]
[1773464669815,3.03449856,88.21,88.174,3.82504519]
[1773464670016,4.77204676,88.21,88.174,3.82504519]
[1773464670815,1.7375482,88.21,88.174,3.82504519]
[1773464675517,35.68,88.226,88.174,3.82504519]
[1773464676521,35.68,88.226,88.185,3.82504519]
[1773464676723,3.03449856,88.24,88.185,3.82504519]
[1773464676921,35.68,88.239,88.185,3.82504519]
[1773464677320,1.71042939,88.238,88.185,3.82504519]
[1773464677524,1.71042939,88.238,88.191,3.82504519]
[1773464679623,1.71042939,88.238,88.193,10.203]
[1773464679825,1.71042939,88.238,88.194,3.82504519]
[1773464688839,1.71042939,88.238,88.144,3.88839199]
[1773464689033,1.70850533,88.219,88.176,3.88839199]
[1773464689225,4.74363547,88.21,88.176,3.88839199]
[1773464690532,3.03513014,88.22,88.176,3.88839199]
[1773464691432,1.70407626,88.222,88.18,3.94545432]
[1773464691832,1.70407626,88.222,88.122,34.01]
[1773464691833,3.03513014,88.2,88.141,3.94545432]
[1773464692328,1.68648302,88.202,88.159,3.94545432]
[1773464692531,35.68,88.239,88.159,3.94545432]
[1773464692532,1.68648302,88.215,88.159,3.94545432]
[1773464692735,3.03513014,88.23,88.18,3.94545432]
[1773464693241,1.68546942,88.229,88.18,3.94545432]
[1773464694440,1.63378598,88.209,88.164,3.94545432]
[1773464697736,1.64571955,88.195,88.12,3.94545432]
[1773464697945,1.64571955,88.195,88.119,1.9726661]
[1773464697946,3.03513014,88.19,88.131,3.94545432]
[1773464698242,1.64571955,88.195,88.131,3.94545432]
[1773464698443,1.64571955,88.195,88.141,3.94545432]
[1773464698843,1.64571955,88.195,88.151,3.94545432]
[1773464700744,1.64571955,88.195,88.155,3.94545432]
[1773464701643,35.68,88.214,88.157,3.94545432]
[1773464701946,3.03513014,88.22,88.161,3.94545432]
[1773464702141,1.61090644,88.221,88.171,3.94545432]
[1773464703748,3.03513014,88.22,88.171,3.94545432]
[1773464704142,3.03513014,88.22,88.173,3.94545432]
[1773464705749,3.03513014,88.22,88.175,3.94545432]
[1773464707450,3.03513014,88.22,88.177,3.94545432]
[1773464713360,3.03513014,88.22,88.179,3.94545432]
[1773464715563,3.03513014,88.21,88.179,3.94545432]
[1773464716761,10.2,88.216,88.179,3.94545432]
[1773464717464,1.6430455,88.219,88.179,3.94545432]
[1773464731573,1.6817882,88.217,88.179,3.94545432]
[1773464738678,1.7534728,88.199,88.136,3.73128232]
[1773464738977,3.03513014,88.2,88.141,3.73128232]
[1773464739580,1.75328524,88.199,88.147,3.73128232]
[1773464741878,10.203,88.193,88.147,3.73128232]
[1773464742082,13.92745101,88.242,88.147,3.73128232]
[1773464742083,1.75679926,88.189,88.147,3.73128232]
[1773464743674,3.03513014,88.18,88.147,3.73128232]
[1773464745681,10.204,88.184,88.147,3.73128232]
[1773464751078,11.91244498,88.184,88.147,3.73128232]
[1773464751285,4.74677199,88.18,88.147,3.73128232]
[1773464751480,1.70844498,88.169,88.136,3.99674662]
[1773464752888,1.70736982,88.179,88.136,3.99674662]
[1773464754688,1.70736982,88.179,88.137,3.99674662]
[1773464757689,10.205,88.176,88.137,3.99674662]
[1773464758285,1.73471622,88.159,88.114,3.99674662]
[1773464760690,3.03832701,88.15,88.114,3.99674662]
[1773464761285,4.73978546,88.15,88.114,3.99674662]
[1773464761587,1.70145845,88.149,88.114,3.99674662]
[1773464765895,10.207,88.155,88.114,3.99674662]
[1773464766297,1.69821684,88.154,88.114,3.99674662]
[1773464766798,35.68,88.185,88.114,3.99674662]
[1773464766799,3.03832701,88.14,88.114,3.99674662]
[1773464766994,1.69952563,88.149,88.114,3.99674662]
[1773464767599,11.90752563,88.147,88.114,3.99674662]
[1773464771302,1.70542963,88.146,88.114,3.99674662]
[1773464773199,1.70580832,88.135,88.1,3.99674662]
[1773464777408,1.70580832,88.135,88.09,10.215]
[1773464777707,1.70580832,88.135,88.091,3.99674662]
[1773464779406,1.70172849,88.132,88.091,3.99674662]
[1773464779614,1.69634754,88.119,88.081,14.21274662]
[1773464779912,1.69634754,88.119,88.082,3.99674662]
[1773464781112,1.70509318,88.109,88.051,3.98791545]
[1773464781406,1.70509318,88.153,88.066,3.98791545]
[1773464781601,1.70509318,88.128,88.071,3.98791545]
[1773464782614,1.71634707,88.126,88.073,3.98791545]
[1773464783506,10.211,88.125,88.076,10.216]
[1773464783708,3.03832701,88.12,88.077,3.98791545]
[1773464785513,1.63791162,88.119,88.077,3.98791545]
[1773464785714,1.64455729,88.116,88.077,3.98791545]
[1773464786409,1.64455729,88.109,88.077,3.98791545]
[1773464787316,1.64455729,88.109,88.068,10.217]
[1773464787708,1.64455729,88.109,88.069,3.98791545]
[1773464788718,3.03832701,88.1,88.069,3.98791545]
[1773464788911,1.64440582,88.099,88.069,3.98791545]
[1773464791219,1.64440582,88.099,88.059,14.20591545]
[1773464791413,1.64440582,88.099,88.059,3.98791545]
[1773464792821,1.64440582,88.099,88.058,10.218]
[1773464793120,1.64440582,88.099,88.058,14.20591545]
[1773464793324,1.64440582,88.099,88.059,3.98791545]
[1773464795224,1.66787735,88.109,88.061,3.98791545]
[1773464795822,10.213,88.104,88.063,3.98791545]
[1773464797131,1.67075889,88.12,88.063,3.98791545]
[1773464797322,4.7090859,88.12,88.071,3.98791545]
[1773464797633,1.65221062,88.129,88.089,3.98791545]
[1773464798326,1.65221062,88.14,88.093,3.98791545]
[1773464798929,1.65221062,88.14,88.096,3.98791545]
[1773464799831,1.70915803,88.152,88.101,3.98791545]
[1773464800527,1.70915803,88.152,88.115,3.98791545]
[1773464803236,3.03832701,88.15,88.115,3.98791545]
[1773464803631,1.70915803,88.152,88.115,3.98791545]
[1773464808439,13.24532701,88.16,88.115,3.98791545]
[1773464808640,1.71887856,88.163,88.117,3.75178383]
[1773464809646,1.71887856,88.163,88.119,3.75178383]
[1773464809938,10.206,88.169,88.119,3.75178383]
[1773464810139,10.205,88.177,88.121,3.75178383]
[1773464810336,11.97833696,88.177,88.121,3.75178383]
[1773464810535,1.77333696,88.176,88.121,3.75178383]
[1773464810941,1.78137579,88.173,88.121,3.75178383]
[1773464811334,1.77841709,88.169,88.121,3.75178383]
[1773464816244,1.77841709,88.169,88.127,10.21]
[1773464816441,1.77841709,88.169,88.128,4.00377599]
[1773464816953,10.205,88.174,88.13,4.00377599]
[1773464819851,1.74917997,88.173,88.13,4.00377599]
[1773464820441,1.74917997,88.173,88.132,4.00377599]
[1773464822348,10.204,88.182,88.134,4.00377599]
[1773464823250,1.74911238,88.201,88.161,4.00377599]
[1773464823552,1.74911238,88.199,88.161,4.00377599]
[1773464825852,3.03965047,88.22,88.163,4.00377599]
[1773464826651,10.2,88.218,88.169,4.00377599]
[1773464827142,10.2,88.218,88.172,4.00377599]
[1773464827645,1.73827469,88.223,88.175,4.00377599]
[1773464827951,10.199,88.228,88.175,4.00377599]
[1773464828652,10.199,88.228,88.181,4.00377599]
[1773464829453,10.199,88.228,88.183,4.00377599]
[1773464829652,1.7389497,88.234,88.183,4.00377599]
[1773464830553,1.7389497,88.234,88.185,4.00377599]
[1773464832353,1.7389497,88.234,88.188,4.00377599]
[1773464834456,35.68,88.242,88.191,4.00377599]
[1773464834660,1.64969205,88.246,88.191,4.00377599]
[1773464835159,3.03965047,88.24,88.191,4.00377599]
[1773464835561,3.03965047,88.24,88.199,4.00377599]
[1773464837263,4.67892956,88.24,88.199,4.00377599]
[1773464837865,1.6403075,88.239,88.199,4.00377599]
[1773464842566,1.61702575,88.237,88.199,4.00377599]
[1773464843669,10.198,88.236,88.199,4.00377599]
[1773464844769,1.61702575,88.237,88.199,4.00377599]
[1773464845470,0.07147652,88.227,88.199,4.00377599]
[1773464845864,3.03965047,88.26,88.201,3.7102647]
[1773464846269,3.03965047,88.26,88.162,20.413]
[1773464846270,3.03965047,88.26,88.211,3.7102647]
[1773464846672,1.6877415,88.261,88.211,3.7102647]
[1773464847071,3.03965047,88.27,88.214,3.7102647]
[1773464847372,4.72878144,88.27,88.214,3.7102647]
[1773464847772,1.77504363,88.269,88.214,3.7102647]
[1773464848575,11.96904363,88.269,88.221,3.7102647]
[1773464851275,10.195,88.265,88.221,3.7102647]
[1773464855372,1.86132339,88.262,88.221,3.7102647]
[1773464856682,12.0475716,88.261,88.221,3.7102647]
[1773464857174,1.83334519,88.249,88.213,3.7102647]
[1773464857880,1.83126312,88.239,88.203,13.9122647]
[1773464858275,1.83126312,88.239,88.203,3.7102647]
[1773464858581,3.03965047,88.23,88.19,3.7102647]
[1773464858880,1.83126312,88.239,88.19,3.7102647]
[1773464859679,1.83126312,88.239,88.191,3.7102647]
[1773464859878,1.82319773,88.237,88.191,3.7102647]
[1773464860080,21.34487929,88.292,88.191,3.7102647]
[1773464860380,21.34487929,88.292,88.25,3.03965047]
[1773464860581,21.34487929,88.292,88.24,3.03965047]
[1773464861173,21.32316381,88.305,88.194,34.02]
[1773464861380,21.32316381,88.299,88.24,3.03965047]
[1773464862578,21.32316381,88.299,88.241,10.197]
[1773464863380,21.268504,88.325,88.27,3.03965047]
[1773464864080,21.268504,88.325,88.28,3.03965047]
[1773464864684,21.268504,88.325,88.27,13.23365047]
[1773464864885,21.25654414,88.319,88.27,10.194]
[1773464870386,21.25654414,88.319,88.261,10.195]
[1773464870579,21.25716873,88.309,88.261,10.195]
[1773464870785,21.25726572,88.299,88.24,3.02920759]
[1773464871685,21.25726572,88.299,88.251,10.196]
[1773464873689,21.26259026,88.279,88.151,34.02]
[1773464873886,21.26259026,88.279,88.22,3.02920759]
[1773464874284,21.26259026,88.279,88.154,158.788]
[1773464874486,21.26259026,88.291,88.23,3.02920759]
[1773464874791,21.26259026,88.291,88.167,158.764]
[1773464874792,21.26259026,88.291,88.25,3.02920759]
[1773464875695,21.26061214,88.304,88.255,10.196]
[1773464876692,21.26061214,88.304,88.25,3.02920759]
[1773464876693,21.26061214,88.304,88.263,10.195]
[1773464880595,21.26404223,88.299,88.253,10.196]
[1773464881595,21.26588425,88.289,88.253,10.196]
[1773464892898,21.26588425,88.289,88.253,10.196]
[1773464893696,21.26588425,88.289,88.207,20.403]
[1773464893697,21.28360717,88.279,88.22,3.02920759]
[1773464894397,21.28360717,88.279,88.23,3.02920759]
[1773464895595,21.28360717,88.279,88.244,10.197]
[1773464896198,21.28360717,88.279,88.209,20.99645566]
[1773464896199,21.28360717,88.279,88.236,10.198]
[1773464896500,21.28360717,88.279,88.22,3.02920759]
[1773464896701,21.28360717,88.279,88.23,3.02920759]
[1773464897597,21.28360717,88.279,88.242,10.197]
[1773464898404,21.28360717,88.279,88.207,20.403]
[1773464898405,21.28360717,88.279,88.234,10.198]
[1773464900907,21.28360717,88.279,88.22,3.02920759]
[1773464900908,21.28360717,88.279,88.242,10.197]
[1773464905003,21.28360717,88.279,88.171,35.32470478]
[1773464905004,21.27536727,88.292,88.24,3.02920759]
[1773464906506,21.27536727,88.292,88.257,10.195]
[1773464910012,16.17538278,88.287,88.22,3.02920759]
[1773464910815,16.1832828,88.269,88.21,3.02920759]
[1773464911605,16.1832828,88.269,88.232,10.198]
[1773464920616,16.1832828,88.269,88.224,10.199]
[1773464920818,16.1909886,88.259,88.224,10.199]
[1773464922123,16.1909886,88.259,88.18,27.99673183]
[1773464922124,16.19367537,88.249,88.19,3.02920759]
[1773464923826,16.19367537,88.249,88.2,3.02920759]
[1773464924523,16.19367537,88.249,88.214,10.2]
[1773464931927,16.16859881,88.269,88.21,3.03359829]
[1773464933532,16.16859881,88.269,88.229,10.199]
[1773464935630,16.16859881,88.269,88.24,0.07145398]
[1773464940936,16.1340337,88.259,88.221,10.2]
[1773464941240,11.0340337,88.239,88.18,3.03359829]
[1773464941943,11.0340337,88.239,88.199,10.202]
[1773464943042,10.99420583,88.229,88.16,3.03359829]
[1773464943247,10.99420583,88.219,88.16,3.03359829]
[1773464944547,10.99420583,88.219,88.183,10.204]
[1773464954351,10.98473173,88.209,88.15,3.03359829]
[1773464955555,10.98473173,88.209,88.164,10.206]
[1773464956254,10.98473173,88.209,88.173,10.205]
[1773464968866,10.97078467,88.225,88.17,3.03359829]
[1773464969069,35.68,88.227,88.18,3.03359829]
[1773464970673,10.97078467,88.236,88.19,10.203]
[1773464972274,10.99448485,88.234,88.182,10.204]
[1773464972469,3.03359829,88.22,88.16,3.03359829]
[1773464972671,10.99448485,88.219,88.16,3.03359829]
[1773464973076,10.99435885,88.209,88.16,3.03359829]
[1773464973374,10.99435885,88.209,88.15,3.03359829]
[1773464973570,10.99435885,88.209,88.166,10.206]
[1773464979072,10.99435885,88.209,88.173,10.205]
[1773464983276,10.199,88.227,88.181,10.204]
[1773464983471,11.01719005,88.226,88.181,10.204]
[1773464984076,11.01719005,88.226,88.188,10.203]
[1773464998196,11.04819815,88.25,88.21,3.03511088]
[1773464999192,11.0459494,88.269,88.22,3.03511088]
[1773465000194,11.0459494,88.269,88.237,10.198]
[1773465000402,11.09431249,88.281,88.237,10.198]
[1773465003803,11.10398472,88.279,88.226,10.199]
[1773465004800,35.68,88.304,88.226,10.199]
[1773465004801,11.1101678,88.269,88.226,10.199]
[1773465008403,11.1101678,88.269,88.234,10.198]
[1773465013707,11.10665917,88.283,88.234,10.198]
[1773465013908,11.10665917,88.283,88.24,3.03511088]
[1773465015510,11.10665917,88.283,88.248,10.196]
[1773465017305,11.10665917,88.283,88.239,10.197]
[1773465018914,11.1406657,88.269,88.2,3.03511088]
[1773465019116,11.1406657,88.259,88.2,3.03511088]
[1773465020614,11.1406657,88.259,88.214,10.2]
[1773465022014,11.16427048,88.249,88.205,10.201]
[1773465025721,11.16427048,88.249,88.21,3.03511088]
[1773465026121,11.16427048,88.249,88.205,10.201]
[1773465028418,11.16427048,88.249,88.214,10.2]
[1773465029323,11.16427048,88.249,88.2,10.202]
[1773465033924,11.16427048,88.249,88.21,3.03511088]
[1773465035628,11.16427048,88.249,88.211,10.201]
[1773465039131,11.16427048,88.249,88.218,10.2]
[1773465049734,10.194,88.267,88.218,10.2]
[1773465049935,11.12633883,88.266,88.218,10.2]
[1773465075766,11.12633883,88.266,88.232,10.198]
[1773465075973,11.12633883,88.266,88.22,3.03235402]
[1773465077370,11.11899857,88.3,88.202,27.99673183]
[1773465077668,11.11899857,88.298,88.23,3.03235402]
[1773465077872,11.11899857,88.298,88.24,3.03235402]
[1773465078465,0.07157239,88.278,88.24,3.03235402]
[1773465078671,11.18803033,88.278,88.241,10.197]
[1773465081675,0.07157239,88.278,88.241,10.197]
[1773465082073,0.07157239,88.278,88.25,3.03235402]
[1773465085279,0.07157239,88.278,88.241,10.197]
[1773465089381,0.07157239,88.278,88.249,10.196]
[1773465090576,3.03235402,88.27,88.219,21.1320572]
[1773465090785,11.03627363,88.259,88.192,21.1320572]
[1773465091083,11.03627363,88.259,88.2,3.03235402]
[1773465091780,11.03627363,88.259,88.209,10.201]
[1773465092380,11.03982062,88.249,88.198,10.202]
[1773465092584,11.03982062,88.239,88.19,3.03235402]
[1773465094686,11.03982062,88.239,88.194,10.203]
[1773465095488,11.03982062,88.239,88.204,10.202]
[1773465095783,11.06465415,88.25,88.21,3.03235402]
[1773465096582,11.06465415,88.25,88.213,10.201]
[1773465108006,11.06465415,88.25,88.22,10.2]
[1773465113705,11.06465415,88.25,88.2,3.03289778]
[1773465114311,11.06465415,88.25,88.209,10.201]
[1773465145539,11.06465415,88.25,88.217,10.2]
[1773465153047,11.06465415,88.25,88.208,10.201]
[1773465157854,11.06465415,88.25,88.215,10.2]
[1773465158152,11.05671298,88.273,88.215,10.2]
[1773465158349,8.80748759,88.272,88.215,10.2]
[1773465158550,11.05671298,88.27,88.215,10.2]
[1773465159451,11.05671298,88.27,88.222,10.199]
[1773465165960,11.05671298,88.27,88.229,10.199]
[1773465169460,11.05671298,88.27,88.236,10.198]
[1773465180562,35.68,88.298,88.209,35.68]
[1773465180563,11.02443558,88.28,88.243,10.197]
[1773465184163,11.02443558,88.28,88.251,10.196]
[1773465184570,11.02018903,88.303,88.251,10.196]
[1773465186367,11.02018903,88.303,88.267,10.194]
[1773465191479,11.02018903,88.303,88.256,10.196]